fUSD/lending_fUSD_20260127
["ID","MTS","AMOUNT","RATE_DAILY","PERIOD"]
[403702094,1769493045747,-3543.0,0.00022324,2]
[403702095,1769493045757,-250.0,0.00022324,2]
[403702096,1769493045767,-250.0,0.00022324,2]
[403702097,1769493045777,-250.0,0.00022324,2]
[403702098,1769493045788,-250.0,0.00022324,2]
[403702099,1769493045797,-250.0,0.00022324,2]
[403702100,1769493045807,-250.0,0.00022324,2]
[403702101,1769493045816,-250.0,0.00022324,2]
[403702102,1769493045826,-337.47289019,0.00022324,2]
[403702103,1769493045836,-250.0,0.00022324,2]
[403702104,1769493045846,-250.0,0.00022324,2]
[403702105,1769493045857,-250.0,0.00022324,2]
[403702106,1769493045866,-250.0,0.00022324,2]
[403702107,1769493045875,-250.0,0.00022324,2]
[403702108,1769493045888,-250.0,0.00022324,2]
[403702109,1769493045899,-823.77908852,0.00022324,2]
[403702110,1769493045908,-250.0,0.00022324,2]
[403702111,1769493045919,-250.0,0.00022324,2]
[403702112,1769493045927,-1000.0,0.00022324,2]
[403702113,1769493045937,-250.0,0.00022324,2]
[403702114,1769493045946,-1000.0,0.00022324,2]
[403702115,1769493045955,-250.0,0.00022324,2]
[403702116,1769493045964,-1000.0,0.00022324,2]
[403702117,1769493045974,-250.0,0.00022324,2]
[403702118,1769493045983,-1000.0,0.00022324,2]
[403702119,1769493045992,-250.0,0.00022324,2]
[403702120,1769493046001,-1000.0,0.00022324,2]
[403702121,1769493046011,-250.0,0.00022324,2]
[403702123,1769493046020,-201.93286099,0.00022324,2]
[403702125,1769493046030,-1000.0,0.00022324,2]
[403702127,1769493046039,-250.0,0.00022324,2]
[403702129,1769493046048,-1000.0,0.00022324,2]
[403702131,1769493046057,-371.86668183,0.00022324,2]
[403702133,1769493046067,-1000.0,0.00022324,2]
[403702135,1769493046076,-1000.0,0.00022324,2]
[403702137,1769493046085,-500.0,0.00022324,2]
[403702139,1769493046095,-500.0,0.00022324,2]
[403702141,1769493046104,-1000.0,0.00022324,2]
[403702143,1769493046113,-500.0,0.00022324,2]
[403702145,1769493046122,-500.0,0.00022324,2]
[403702147,1769493046132,-1000.0,0.00022324,2]
[403702149,1769493046141,-500.0,0.00022324,2]
[403702150,1769493046150,-500.0,0.00022324,2]
[403702151,1769493046162,-1000.0,0.00022324,2]
[403702152,1769493046171,-500.0,0.00022324,2]
[403702153,1769493046180,-500.0,0.00022324,2]
[403702154,1769493046189,-500.0,0.00022324,2]
[403702155,1769493046198,-500.0,0.00022324,2]
[403702156,1769493046208,-500.0,0.00022324,2]
[403702157,1769493046217,-500.0,0.00022324,2]
[403702158,1769493046227,-500.0,0.00022324,2]
[403702159,1769493046238,-500.0,0.00022324,2]
[403702160,1769493046247,-578.20924308,0.00022324,2]
[403702161,1769493046256,-500.0,0.00022324,2]
[403702162,1769493046266,-500.0,0.00022324,2]
[403702163,1769493046276,-500.0,0.00022324,2]
[403702164,1769493046285,-201.932861,0.00022324,2]
[403702165,1769493046294,-500.0,0.00022324,2]
[403702166,1769493046304,-500.0,0.00022324,2]
[403702167,1769493046313,-500.0,0.00022324,2]
[403702168,1769493046322,-500.0,0.00022324,2]
[403702169,1769493046331,-500.0,0.00022324,2]
[403702170,1769493046340,-500.0,0.00022324,2]
[403702171,1769493046350,-500.0,0.00022324,2]
[403702172,1769493046359,-695.39793187,0.00022324,2]
[403702173,1769493046368,-151.0,0.00022324,2]
[403702174,1769493046378,-284.4159376,0.00022338,2]
[403702175,1769493046388,-459.8,0.00022352,2]
[403702176,1769493046397,-209.40437684,0.00022379,2]
[403702177,1769493046407,-31024.0,0.00022384,2]
[403702178,1769493046416,-217.15233878,0.00022434,2]
[403702179,1769493046425,-225.18697532,0.00022489,2]
[403702180,1769493046434,-160.38,0.00022496,2]
[403702181,1769493046445,-500.0,0.00022521,2]
[403702182,1769493046454,-1001.71172286,0.00022521,2]
[403702183,1769493046464,-501.12552342,0.00022521,2]
[403702184,1769493046474,-500.0,0.00022521,2]
[403702185,1769493046483,-193.52208381,0.00022521,2]
[403702186,1769493046493,-500.0,0.00022521,2]
[403702187,1769493046503,-1000.0,0.00022521,2]
[403702188,1769493046512,-500.0,0.00022521,2]
[403702189,1769493046521,-233.51889341,0.00022544,2]
[403702190,1769493046530,-166.66,0.00022553,2]
[403702191,1769493046539,-242.15909246,0.00022599,2]
[403702192,1769493046549,-2492.31975462,0.000226,2]
[403702193,1769493046558,-251.11897888,0.00022654,2]
[403702195,1769493046567,-260.4103811,0.00022709,2]
[403702197,1769493046576,-270.0455652,0.00022764,2]
[403702199,1769493046585,-500.0,0.00022767,2]
[403702200,1769493046595,-280.03725112,0.00022819,2]
[403702201,1769493046604,-211.51,0.00022835,2]
[403702202,1769493046613,-347.0,0.00022849,2]
[403702203,1769493046627,-160.38,0.00022859,2]
[403702204,1769493046636,-181.08010149,0.00022872,2]
[403702205,1769493046645,-854.2589148,0.00022872,2]
[403702206,1769493046654,-290.39862941,0.00022874,2]
[403702207,1769493046663,-411.44716849,0.00022907,2]
[403702208,1769493046673,-301.1433787,0.00022929,2]
[403702209,1769493046682,-400.0,0.00023,2]
[403702210,1769493046691,-501.28496341,0.00023068,2]
[403702211,1769493046701,-28507.06,0.00023093,2]
[403702212,1769493046710,-765.35,0.00023105,2]
[403702213,1769493046719,-166.66,0.00023211,2]
[403702214,1769493046728,-166.58560685,0.0002342,2]
[403702216,1769493046737,-885.86649465,0.0002342,2]
[403702218,1769493046746,-150.00182736,0.00023461,20]
[403702219,1769493046755,-26255.0952659,0.00023572,7]
[403702220,1769493046768,-1613.0,0.00023579,2]
[403702221,1769493046777,-158.37,0.00023623,2]
[403702222,1769493046787,-12507.0,0.00023684,2]
[403702223,1769493046796,-334.5472959,0.00023693,2]
[403702224,1769493046806,-1041.29,0.00023714,2]
[403702225,1769493046815,-12507.0,0.00023929,2]
[403702226,1769493046824,-918.64355495,0.00023968,2]
[403702227,1769493046833,-900.0,0.00024004,2]
[403702228,1769493046843,-3183.68744233,0.00024126,2]
[403702229,1769493046852,-3264.03991666,0.00024126,2]
[403702230,1769493046861,-12507.0,0.00024173,2]
[403702231,1769493046870,-768.37,0.00024225,30]
[403702232,1769493046880,-459.8,0.00024384,2]
[403702233,1769493046889,-12507.0,0.00024417,2]
[403702234,1769493046898,-1000.0,0.00024451,2]
[403702235,1769493046907,-16127.0,0.00024493,2]
[403702236,1769493046917,-952.63336648,0.00024516,2]
[403702237,1769493046927,-167.45779973,0.0002463,2]
[403702238,1769493046936,-1225.03,0.00024658,2]
[403702239,1769493046946,-150.0,0.00024658,2]
[403702240,1769493046955,-12507.0,0.00024661,2]
[403702241,1769493046964,-151.0,0.00024797,7]
[403702242,1769493046973,-250.2674855,0.00024799,2]
[403702243,1769493046983,-500.0,0.00024799,2]
[403702244,1769493046992,-500.0,0.00024799,2]
[403702245,1769493047001,-6198.23,0.000248,7]
[403702246,1769493047011,-4551.14,0.000248,2]
[403702247,1769493047019,-603838.045329,0.000248,2]
[403702248,1769493047029,-7555.0,0.00024812,2]
[403702249,1769493047038,-150.00182736,0.00024837,25]
[403702250,1769493047048,-150.0,0.00024897,2]
[403702251,1769493047057,-603568.492849,0.000249,2]
[403702252,1769493047066,-12507.0,0.00024905,2]
[403702253,1769493047076,-1408.0,0.00024981,2]
[403702254,1769493047085,-3477.0,0.00024981,2]
[403702255,1769493047094,-1333.0,0.00024981,2]
[403702256,1769493047103,-615.0,0.00024981,2]
[403702257,1769493047113,-184.0,0.00024981,2]
[403702258,1769493047123,-1269.0,0.00024981,2]
[403702259,1769493047132,-916.0,0.00024981,2]
[403702260,1769493047141,-1204.0,0.00024981,2]
[403702261,1769493047151,-567.0,0.00024981,2]
[403702262,1769493047163,-2442.0,0.00024981,2]
[403702263,1769493047173,-4831.0,0.00024981,2]
[403702264,1769493047182,-450.0,0.00025,2]
[403702265,1769493047192,-158.37,0.00025013,2]
[403702266,1769493047203,-346.92554585,0.00025062,2]
[403702267,1769493047212,-3543.0,0.00025063,2]
[403702268,1769493047221,-599.60298507,0.00025063,2]
[403702269,1769493047231,-721.12765535,0.00025063,2]
[403702270,1769493047241,-151.0,0.00025063,2]
[403702271,1769493047250,-987.88080104,0.00025064,2]
[403702272,1769493047260,-12507.0,0.00025149,2]
[403702273,1769493047269,-900.0,0.00025374,2]
[403702274,1769493047279,-1024.43239068,0.00025612,2]
[403702275,1769493047289,-299.0,0.00025805,2]
[403702276,1769493047298,-7071.09675628,0.00026,2]
[403702277,1769493047308,-1062.33638913,0.0002616,2]
[403702278,1769493047319,-150.00182736,0.00026212,30]
[403702279,1769493047328,-4209.39279102,0.000263,2]
[403702280,1769493047337,-4551.14,0.000263,2]
[403702281,1769493047346,-2205.07255022,0.00026346,2]
[403702282,1769493047356,-167.95681876,0.00026362,2]
[403702283,1769493047368,-27433.21015108,0.000264,2]
[403702284,1769493047378,-158.37,0.00026402,2]
[403702285,1769493047387,-3183.68744233,0.00026402,2]
[403702286,1769493047397,-3264.03991666,0.00026402,2]
[403702287,1769493047406,-359.76179104,0.00026431,2]
[403702288,1769493047415,-180.81086108,0.00026462,2]
[403702289,1769493047424,-212.21,0.00026512,2]
[403702290,1769493047433,-284.4159376,0.00026529,2]
[403702291,1769493047442,-384.2349254,0.00026562,2]
[403702292,1769493047452,-35524.071,0.00026572,14]
[403702293,1769493047461,-1000.0,0.00026674,2]
[403702294,1769493047470,-2000.0,0.000267,2]
[403702295,1769493047480,-1101.64283553,0.00026708,2]
[403702296,1769493047489,-2108.2,0.00027,7]
[403702297,1769493047499,-250.0,0.00027,2]
[403702298,1769493047508,-1979.45593073,0.00027,14]
[403702299,1769493047517,-500.0,0.00027,2]
[403702300,1769493047528,-1032.99064523,0.00027,2]
[403702301,1769493047537,-530.0,0.00027,2]
[403702302,1769493047547,-3682.89,0.00027123,2]
[403702303,1769493047558,-150.0,0.00027123,2]
[403702304,1769493047567,-1142.40362045,0.00027256,2]
[403702305,1769493047577,-6198.23,0.000273,7]
[403702306,1769493047587,-4551.14,0.000273,2]
[403702307,1769493047598,-7821.47,0.00027324,2]
[403702308,1769493047608,-150.0,0.00027369,2]
[403702309,1769493047618,-223.2770663,0.0002737,30]
[403702310,1769493047627,-713.0,0.0002737,2]
[403702311,1769493047636,-535.6,0.0002737,30]
[403702312,1769493047645,-650.2,0.0002737,2]
[403702313,1769493047655,-892.2,0.0002737,30]
[403702314,1769493047664,-454.2,0.0002737,2]
[403702315,1769493047674,-737.8,0.0002737,2]
[403702316,1769493047684,-4105.84632426,0.0002739,2]
[403702317,1769493047694,-8110.11588829,0.0002739,2]
[403702318,1769493047705,-4635.9564551,0.0002739,120]
[403702319,1769493047715,-4408.06959994,0.0002739,7]
[403702320,1769493047724,-1361.76,0.00027397,2]
[403702321,1769493047734,-1361.76,0.00027397,2]
[403702322,1769493047743,-1361.76,0.00027397,2]
[403702323,1769493047752,-1361.76,0.00027397,2]
[403702324,1769493047761,-1361.76,0.00027397,2]
[403702325,1769493047770,-1361.76,0.00027397,2]
[403702326,1769493047780,-1361.76,0.00027397,2]
[403702327,1769493047790,-1361.76,0.00027397,2]
[403702328,1769493047799,-1361.76,0.00027397,2]
[403702329,1769493047810,-1361.76,0.00027397,2]
[403702330,1769493047819,-1361.76,0.00027397,2]
[403702331,1769493047828,-1361.76,0.00027397,2]
[403702332,1769493047838,-1361.76,0.00027397,2]
[403702333,1769493047847,-1361.76,0.00027397,2]
[403702334,1769493047856,-1361.76,0.00027397,2]
[403702335,1769493047866,-1361.76,0.00027397,2]
[403702336,1769493047876,-1361.76,0.00027397,2]
[403702337,1769493047885,-1361.76,0.00027397,2]
[403702338,1769493047895,-1361.76,0.00027397,2]
[403702339,1769493047904,-1361.76,0.00027397,2]
[403702340,1769493047914,-1361.76,0.00027397,2]
[403702341,1769493047924,-1361.76,0.00027397,2]
[403702342,1769493047934,-1361.76,0.00027397,2]
[403702343,1769493047943,-1361.86867294,0.00027397,2]
[403702344,1769493047952,-500.0,0.00027397,15]
[403702345,1769493047961,-500.0,0.00027397,15]
[403702346,1769493047971,-500.0,0.00027397,15]
[403702347,1769493047981,-500.0,0.00027397,15]
[403702348,1769493047992,-582.38050732,0.00027397,15]
[403702349,1769493048001,-500.0,0.00027397,120]
[403702350,1769493048010,-377.29964469,0.00027397,7]
[403702351,1769493048020,-300.0,0.00027397,2]
[403702352,1769493048029,-518.73,0.00027397,2]
[403702353,1769493048038,-39859.73,0.00027397,2]
[403702354,1769493048047,-1225.03,0.00027397,2]
[403702355,1769493048056,-500.0,0.00027397,30]
[403702356,1769493048065,-1445.76,0.00027397,2]
[403702357,1769493048074,-210.89046941,0.00027397,4]
[403702358,1769493048083,-160.07892481,0.00027397,5]
[403702359,1769493048093,-150.0,0.00027397,5]
[403702360,1769493048102,-150.0,0.00027397,5]
[403702361,1769493048111,-519.32930246,0.00027397,5]
[403702362,1769493048122,-159.12025721,0.00027397,5]
[403702363,1769493048132,-9417.69161693,0.00027398,30]
[403702364,1769493048141,-200.91158946,0.000275,2]
[403702365,1769493048150,-548.84477082,0.000275,2]
[403702366,1769493048161,-837.0,0.0002758,3]
[403702367,1769493048172,-150.00182736,0.00027588,33]
[403702368,1769493048181,-335.4210786,0.00027599,30]
[403702369,1769493048194,-641.40939598,0.00027671,30]
[403702370,1769493048203,-158.37,0.00027792,2]
[403702371,1769493048213,-373.07297731,0.000278,2]
[403702372,1769493048222,-3543.0,0.00027802,2]
[403702373,1769493048231,-621.78829552,0.00027802,2]
[403702374,1769493048240,-747.8093786,0.00027802,2]
[403702375,1769493048249,-1184.6725544,0.00027804,2]
[403702376,1769493048259,-534.50782998,0.00027945,30]
[403702377,1769493048268,-250.0,0.00027945,5]
[403702378,1769493048277,-250.0,0.00027945,5]
[403702379,1769493048286,-1408.0,0.00027981,2]
[403702380,1769493048296,-3477.0,0.00027981,2]
[403702381,1769493048305,-1333.0,0.00027981,2]
[403702382,1769493048314,-615.0,0.00027981,2]
[403702383,1769493048323,-184.0,0.00027981,2]
[403702384,1769493048332,-1269.0,0.00027981,2]
[403702385,1769493048341,-916.0,0.00027981,2]
[403702386,1769493048351,-1204.0,0.00027981,2]
[403702387,1769493048360,-567.0,0.00027981,2]
[403702388,1769493048370,-2442.0,0.00027981,2]
[403702389,1769493048379,-4831.0,0.00027981,2]
[403702390,1769493048388,-71235.79568072,0.00028,2]
[403702391,1769493048398,-196.4083474,0.00028,120]
[403702392,1769493048407,-50796.40922362,0.00028,2]
[403702393,1769493048416,-4879.4150918,0.00028,60]
[403702394,1769493048426,-160.0,0.00028,2]
[403702395,1769493048435,-200.0,0.00028141,2]
[403702396,1769493048444,-1228.50543892,0.00028352,2]
[403702397,1769493048453,-427.60626398,0.00028356,30]
[403702398,1769493048462,-4551.14,0.000284,2]
[403702399,1769493048472,-1000.0,0.00028451,7]
[403702400,1769493048481,-350.0,0.00028493,5]
[403702401,1769493048491,-350.0,0.00028493,5]
[403702402,1769493048500,-1958.36,0.000286,14]
[403702403,1769493048508,-1303.43648838,0.00028646,15]
[403702404,1769493048518,-3183.68744233,0.00028679,2]
[403702405,1769493048527,-3264.03991666,0.00028679,2]
[403702406,1769493048536,-213.0052086,0.00028767,2]
[403702407,1769493048545,-500.0,0.00028767,120]
[403702408,1769493048554,-320.70469799,0.00028767,30]
[403702409,1769493048563,-500.0,0.00028822,120]
[403702410,1769493048572,-500.0,0.00028877,120]
[403702411,1769493048581,-276.15439092,0.00028931,120]
[403702412,1769493048591,-150.00182736,0.00028963,37]
[403702413,1769493048600,-550.0,0.00029,2]
[403702414,1769493048609,-501.7243881,0.00029,2]
[403702415,1769493048619,-450.0,0.00029041,5]
[403702416,1769493048628,-450.0,0.00029041,5]
[403702417,1769493048637,-386.87667747,0.00029169,2]
[403702418,1769493048647,-158.37,0.00029181,2]
[403702419,1769493048656,-768.37,0.00029272,30]
[403702420,1769493048665,-6198.23,0.000293,7]
[403702421,1769493048675,-4551.14,0.000293,2]
[403702422,1769493048684,-213.80313199,0.00029452,30]
[403702423,1769493048693,-13274.47914687,0.000295,7]
[403702424,1769493048702,-150.0,0.00029589,2]
[403702425,1769493048711,-437.26697086,0.00029589,5]
[403702426,1769493048721,-550.0,0.00029589,5]
[403702427,1769493048730,-509.67,0.00029693,2]
[403702428,1769493048739,-78817.67422332,0.000299,2]
[403702429,1769493048748,-237.03375612,0.0002999,2]
[403702430,1769493048758,-150.0,0.0003,2]
[403702431,1769493048767,-150.0,0.0003,14]
[403702432,1769493048776,-161.0,0.0003,14]
[403702433,1769493048785,-116550.21358985,0.0003,5]
[403702434,1769493048795,-10000.0,0.0003,10]
[403702435,1769493048804,-4713.40470163,0.0003,2]
[403702436,1769493048813,-162.0,0.0003,14]
[403702437,1769493048822,-282.0,0.0003,14]
[403702438,1769493048831,-213.06212518,0.0003,30]
[403702439,1769493048840,-19852.77280958,0.0003,2]
[403702440,1769493048849,-4149.26255662,0.0003,2]
[403702441,1769493048858,-2000.0,0.0003,14]
[403702442,1769493048868,-1816.15950997,0.0003,2]
[403702443,1769493048877,-440.93798486,0.0003,2]
[403702444,1769493048887,-162.90642149,0.0003,2]
[403702445,1769493048896,-161.21252582,0.0003,2]
[403702446,1769493048905,-1468.05,0.000301,60]
[403702447,1769493048914,-1934.13,0.000301,60]
[403702448,1769493048923,-1069.5,0.0003011,30]
[403702449,1769493048932,-975.3,0.0003011,30]
[403702450,1769493048941,-681.3,0.0003011,30]
[403702451,1769493048950,-1106.7,0.0003011,30]
[403702452,1769493048960,-151.0,0.00030127,7]
[403702453,1769493048969,-1072.86823512,0.0003013,2]
[403702454,1769493048978,-13839.98591215,0.0003013,2]
[403702455,1769493048987,-1508.95721181,0.0003013,5]
[403702456,1769493048996,-633.59015781,0.0003013,2]
[403702457,1769493049005,-5055.74269761,0.0003013,2]
[403702458,1769493049014,-201.56081743,0.0003013,2]
[403702459,1769493049023,-1223.58883991,0.0003013,2]
[403702460,1769493049032,-7724.90006798,0.0003013,2]
[403702461,1769493049042,-258.330728,0.0003013,7]
[403702462,1769493049051,-258.330728,0.0003013,7]
[403702463,1769493049060,-258.330728,0.0003013,7]
[403702464,1769493049070,-258.330728,0.0003013,7]
[403702465,1769493049079,-151.0,0.0003013,7]
[403702466,1769493049087,-151.0,0.0003013,7]
[403702467,1769493049097,-2002.950959,0.0003013,7]
[403702468,1769493049106,-2002.950959,0.0003013,7]
[403702469,1769493049115,-2002.950959,0.0003013,7]
[403702470,1769493049124,-2002.950959,0.0003013,7]
[403702471,1769493049133,-151.0,0.0003013,7]
[403702472,1769493049142,-151.0,0.0003013,7]
[403702473,1769493049151,-3282.141236,0.0003013,7]
[403702474,1769493049163,-3282.141236,0.0003013,7]
[403702475,1769493049173,-3282.141236,0.0003013,7]
[403702476,1769493049182,-3282.141236,0.0003013,7]
[403702477,1769493049193,-229.204511,0.0003013,7]
[403702478,1769493049203,-229.204511,0.0003013,7]
[403702479,1769493049212,-229.204511,0.0003013,7]
[403702480,1769493049223,-229.204511,0.0003013,7]
[403702481,1769493049234,-151.0,0.0003013,7]
[403702482,1769493049243,-151.0,0.0003013,7]
[403702483,1769493049252,-202.653038,0.0003013,7]
[403702484,1769493049261,-377.536402,0.0003013,7]
[403702485,1769493049270,-377.536402,0.0003013,7]
[403702486,1769493049280,-377.536402,0.0003013,7]
[403702487,1769493049290,-377.536402,0.0003013,7]
[403702488,1769493049299,-151.0,0.0003013,7]
[403702489,1769493049310,-151.0,0.0003013,7]
[403702490,1769493049321,-2806.026141,0.0003013,7]
[403702491,1769493049330,-2806.026141,0.0003013,7]
[403702492,1769493049339,-2806.026141,0.0003013,7]
[403702493,1769493049349,-2806.026141,0.0003013,7]
[403702494,1769493049359,-151.0,0.0003013,7]
[403702495,1769493049369,-267.670865,0.0003013,7]
[403702496,1769493049378,-267.670865,0.0003013,7]
[403702497,1769493049387,-267.670865,0.0003013,7]
[403702498,1769493049397,-267.670865,0.0003013,7]
[403702499,1769493049406,-505.23716607,0.00030137,120]
[403702500,1769493049415,-1225.03,0.00030137,2]
[403702501,1769493049425,-167.81498137,0.00030137,5]
[403702502,1769493049434,-1195.03798518,0.0003014,120]
[403702503,1769493049443,-14016.72764122,0.000302,2]
[403702504,1769493049453,-157.756282,0.000302,31]
[403702505,1769493049462,-157.756282,0.000302,31]
[403702506,1769493049472,-157.756282,0.000302,31]
[403702507,1769493049482,-348.619521,0.000302,31]
[403702508,1769493049493,-157.756282,0.000302,31]
[403702509,1769493049502,-348.619521,0.000302,31]
[403702510,1769493049512,-348.619521,0.000302,31]
[403702511,1769493049523,-348.619521,0.000302,31]
[403702512,1769493049765,-486.92329,0.000302,31]
[403702513,1769493049775,-486.92329,0.000302,31]
[403702514,1769493049784,-486.92329,0.000302,31]
[403702515,1769493049794,-486.92329,0.000302,31]
[403702516,1769493049805,-219.157138,0.000302,31]
[403702517,1769493049814,-193.400251,0.000302,31]
[403702518,1769493049823,-219.157138,0.000302,31]
[403702519,1769493049832,-193.400251,0.000302,31]
[403702520,1769493049841,-219.157138,0.000302,31]
[403702521,1769493049850,-193.400251,0.000302,31]
[403702522,1769493049859,-219.157138,0.000302,31]
[403702523,1769493049869,-193.400251,0.000302,31]
[403702524,1769493049878,-151.0,0.000302,31]
[403702525,1769493049887,-151.0,0.000302,31]
[403702526,1769493049897,-151.0,0.000302,31]
[403702527,1769493049907,-151.0,0.000302,31]
[403702528,1769493049918,-377.481177,0.000302,31]
[403702529,1769493049927,-377.481177,0.000302,31]
[403702530,1769493049937,-377.481177,0.000302,31]
[403702531,1769493049946,-377.481177,0.000302,31]
[403702532,1769493049955,-151.0,0.000302,31]
[403702533,1769493049964,-151.0,0.000302,31]
[403702534,1769493049973,-151.0,0.000302,31]
[403702535,1769493049983,-151.0,0.000302,31]
[403702536,1769493049992,-151.0,0.000302,31]
[403702537,1769493050002,-800.749989,0.000302,7]
[403702538,1769493050011,-800.749989,0.000302,7]
[403702539,1769493050021,-800.749989,0.000302,7]
[403702540,1769493050030,-800.749989,0.000302,7]
[403702541,1769493050039,-500.0,0.00030301,2]
[403702542,1769493050048,-150.00182736,0.00030339,41]
[403702543,1769493050058,-170.33,0.000304,30]
[403702544,1769493050068,-2000.0,0.000304,2]
[403702545,1769493050078,-4551.14,0.000304,2]
[403702546,1769493050087,-282.0,0.00030411,14]
[403702547,1769493050098,-151.0,0.00030411,31]
[403702548,1769493050109,-151.0,0.00030411,31]
[403702549,1769493050118,-151.0,0.00030411,30]
[403702550,1769493050127,-165.820916,0.00030411,31]
[403702551,1769493050137,-868.0,0.00030478,3]
[403702552,1769493050146,-401.19111454,0.00030538,2]
[403702553,1769493050157,-3543.0,0.00030541,2]
[403702554,1769493050171,-644.79446246,0.00030541,2]
[403702555,1769493050181,-775.47832561,0.00030541,2]
[403702556,1769493050191,-151.0,0.00030629,31]
[403702557,1769493050203,-151.0,0.00030629,31]
[403702558,1769493050212,-151.0,0.00030629,31]
[403702559,1769493050223,-250.543557,0.00030629,31]
[403702560,1769493050232,-226.698597,0.00030629,31]
[403702561,1769493050244,-226.698597,0.00030629,31]
[403702562,1769493050253,-226.698597,0.00030629,31]
[403702563,1769493050262,-226.698597,0.00030629,31]
[403702564,1769493050271,-284.4159376,0.0003072,2]
[403702565,1769493050281,-1607.34929587,0.0003084,2]
[403702566,1769493050290,-1318.52217941,0.00030892,4]
[403702567,1769493050299,-78948.5405615,0.0003095,2]
[403702568,1769493050308,-151.0,0.0003095,31]
[403702569,1769493050317,-3183.68744233,0.00030956,2]
[403702570,1769493050327,-3264.03991666,0.00030956,2]
[403702571,1769493050336,-1408.0,0.00030981,2]
[403702572,1769493050345,-3477.0,0.00030981,2]
[403702573,1769493050354,-1333.0,0.00030981,2]
[403702574,1769493050363,-615.0,0.00030981,2]
[403702575,1769493050372,-184.0,0.00030981,2]
[403702576,1769493050381,-1269.0,0.00030981,2]
[403702577,1769493050390,-916.0,0.00030981,2]
[403702578,1769493050399,-1204.0,0.00030981,2]
[403702579,1769493050408,-567.0,0.00030981,2]
[403702580,1769493050418,-2442.0,0.00030981,2]
[403702581,1769493050427,-4831.0,0.00030981,2]
[403702582,1769493050436,-342.7245637,0.00031,5]
[403702583,1769493050445,-600.0,0.00031,2]
[403702584,1769493050454,-172.98945368,0.00031,120]
[403702585,1769493050463,-51531.29525978,0.00031,2]
[403702586,1769493050472,-187.88,0.000312,24]
[403702587,1769493050482,-22191.18368159,0.0003121,2]
[403702588,1769493050491,-500.0,0.0003137,2]
[403702589,1769493050500,-1000.0,0.0003137,2]
[403702590,1769493050509,-207.74,0.000314,2]
[403702591,1769493050519,-150.0,0.000314,5]
[403702592,1769493050528,-165.17870493,0.000314,30]
[403702593,1769493050538,-1533.577315,0.000314,6]
[403702594,1769493050547,-19719.1775097,0.0003143,4]
[403702595,1769493050556,-6198.23,0.000315,7]
[403702596,1769493050565,-197.2123506,0.000315,2]
[403702597,1769493050574,-150.0,0.000315,2]
[403702598,1769493050583,-4551.14,0.000315,2]
[403702599,1769493050593,-150.0,0.00031644,14]
[403702600,1769493050603,-161.0,0.00031644,14]
[403702601,1769493050612,-162.0,0.00031644,14]
[403702602,1769493050621,-282.0,0.00031644,14]
[403702603,1769493050630,-150.00182736,0.00031714,45]
[403702604,1769493050639,-173.68705177,0.000318,5]
[403702605,1769493050649,-416.03518578,0.00031907,2]
[403702606,1769493050658,-150.0,0.00032055,2]
[403702607,1769493050667,-604.226748,0.00032062,120]
[403702608,1769493050676,-500.0,0.0003216,2]
[403702609,1769493050686,-152.0,0.00032195,3]
[403702610,1769493050697,-893.5273624,0.000323,2]
[403702611,1769493050708,-150.0,0.000324,7]
[403702612,1769493050718,-4551.14,0.000326,2]